[Event "1st Bella Italia International 2022"]
[Site "Lignano"]
[Date "2022.08.20"]
[Round "5.9"]
[White "Cappelletto, Joshuaede"]
[Black "Etxagibel Larranaga, Asier"]
[Result "1-0"]
[ECO "B12"]
[WhiteElo "2266"]
[BlackElo "2118"]
[Annotator "TA"]
[PlyCount "61"]
[EventDate "2022.08.18"]
[EventCountry "ITA"]
[SourceTitle "playchess.com"]
[Source "ChessBase"]
[SourceQuality "1"]
[TimeControl "5400+30"]

{[%evp 11,61,7,9,6,13,0,0,-4,-7,0,30,30,29,17,17,17,12,12,13,11,16,0,41,27,49,25,50,48,95,89,103,106,105,112,127,129,283,275,507,420,394,196,215,191,202,183,172,95,1096,1076,831,516]} 1. e4 {[%emt 0:00:04]} c6 {[%emt 0:00:01]} 2. d4 {[%emt 0:00:07]} d5 {[%emt 0:00:02]} 3. e5 {[%emt 0:00:08]} Bf5 {[%emt 0:00:05]} 4. h4 {[%emt 0:00:05]} h5 {[%emt 0:00:08]} 5. c4 {[%emt 0:00:05]} e6 {[%emt 0:00:11]} 6. Nc3 {[%emt 0:00:05]} Ne7 {[%emt 0:00:48]} 7. Nge2 $1 {[%emt 0:00:08][%cal Bg1e2,Be2g3,Bg3h5,Bh5f4][%mdl 32] The main line 7.Nge2 scores better than 7.Bg5. B12: Caro-Kann: Advance Variation.} Nd7 {[%emt 0:04:20]} 8. Ng3 {[%emt 0:00:07]} Bg6 {[%emt 0:00:20]} 9. cxd5 {[%emt 0:00:07] The position is equal.} Nxd5 {[%emt 0:01:48]} 10. Be2 {[%emt 0:00:06]} Be7 {[%emt 0:06:05]} 11. Nxd5 {[%emt 0:02:27]} cxd5 {[%emt 0:00:12]} 12. Bxh5 {[%emt 0:00:08]} Bxh5 {[%emt 0:03:16]} 13. Nxh5 {[%emt 0:02:57]} g6 {[%emt 0:01:38]} 14. Nf4 {[%emt 0:00:07]} Rxh4 {[%emt 0:00:33]} 15. Rxh4 {[%emt 0:00:08]} Bxh4 {[%emt 0:00:03] [#]} 16. Qd3 $146 {[%emt 0:01:14]} ({Predecessor:} 16. Qg4 Nf8 17. Bd2 Rc8 18. Ke2 Be7 19. Rh1 Qb6 20. Nd3 Qb5 21. Rh8 Rc2 22. Ke3 {0-1 (32) Korchmar,V (2450)-Dvirnyy,D (2488) Chess.com INT 2021}) 16... Nf8 {[%emt 0:16:39]} 17. Kf1 {[%emt 0:00:23]} Rc8 {[%emt 0:01:26]} 18. g3 {[%emt 0:00:22]} Bg5 {[%emt 0:03:12]} 19. Kg2 {[%emt 0:01:14]} Qb6 {[%emt 0:02:03] [#]} (19... Be7 $14) 20. Nxd5 $1 $16 {[%emt 0:39:35]} exd5 {[%emt 0:14:18]} 21. Bxg5 {[%emt 0:00:07] Strongly threatening Qa3.} Ne6 {[%emt 0:00:07] [#]} 22. Bf6 {[%emt 0:02:59] aiming for Qa3.} Rc4 {[%emt 0:02:17]} 23. Qa3 {[%emt 0:01:56][%csl Gf6][%cal Ra3e7]} Rb4 $2 {[%emt 0:01:18] [#]} (23... Qb4 $16) 24. Rh1 $1 $18 {[%emt 0:15:35]} a5 $2 {[%emt 0:11:08]} (24... g5 25. Rh8+ Kd7) 25. Rh8+ {[%emt 0:02:35]} Kd7 {[%emt 0:00:26]} 26. b3 $40 {[%emt 0:12:22][%mdl 128] White is out for blood.} (26. Qc3 Qc6 $16) (26. Rh7 $142) 26... Qxd4 {[%emt 0:09:45]} 27. Qc1 {[%emt 0:01:38][%csl Gh8][%cal Rc1c8] Chess con chili.} (27. Qxa5 Nf4+ 28. Kg1 (28. gxf4 Qe4+ 29. Kh2 Qxf4+ 30. Kg2 Qg4+ 31. Kh2 Qf4+ 32. Kg2 Qg4+ 33. Kh2 Qf4+ $11) 28... Ne2+ 29. Kg2 (29. Kf1 $2 Qd1+ 30. Kg2 Qg1+ 31. Kf3 Nd4+ 32. Kg4 Nc6+ 33. Qxb4 Nxb4 $19) 29... Nf4+ 30. Kg1 (30. gxf4 Qe4+ 31. Kh2 Qxf4+ 32. Kg2 Qg4+ 33. Kh2 Qf4+ 34. Kg2 Qg4+ 35. Kh2 Qf4+ $11) 30... Ne2+ 31. Kg2 (31. Kf1 $2 Qd1+ 32. Kg2 Qg1+ 33. Kf3 Nd4+ 34. Kg4 Nc6+ 35. Qxb4 Nxb4 $19) 31... Nf4+ $11) 27... Qc5 {[%emt 0:01:48] Prevents Qc8+.} 28. Qh6 {[%emt 0:04:14] Threatens to win with Qh7.} Qc2 {[%emt 0:04:41]} 29. Rh7 {[%emt 0:04:40]} (29. Qh7 $18 Nf4+ 30. Kg1 (30. gxf4 Qe4+ 31. Kh2 Qxf4+ 32. Kh1 Qf3+ 33. Kh2 Qf4+ 34. Kh3 Qg4+ 35. Kh2 Qf4+ $11) 30... Qd1+ 31. Kh2 Qh5+ 32. Qxh5 Nxh5 33. Rd8+ Kc7 34. Be7 (34. Rxd5 Nxf6 35. exf6 a4 $11)) 29... Nf4+ $2 {[%emt 0:11:33][%mdl 8192]} 30. gxf4 {[%emt 0:00:16]} Qe4+ {[%emt 0:00:03]} 31. Kh2 {[%emt 0:00:06] Weighted Error Value: White=0.24 (precise) /Black=0.35} 1-0

[Event "1st Bella Italia International 2022"]
[Site "Lignano"]
[Date "2022.08.20"]
[Round "5.10"]
[White "Bettalli, Francesco"]
[Black "Player, Edmund C"]
[Result "0-1"]
[ECO "C01"]
[WhiteElo "2237"]
[BlackElo "2202"]
[Annotator "TA"]
[PlyCount "138"]
[EventDate "2022.08.18"]
[EventCountry "ITA"]
[SourceTitle "playchess.com"]
[Source "ChessBase"]
[SourceQuality "1"]
[TimeControl "5400+30"]

{[%evp 13,138,0,8,10,14,9,10,5,27,36,41,33,46,45,54,29,40,-17,-16,-14,-14,-36,-23,-33,-41,-46,-56,-107,-67,-66,-62,-59,-40,-40,-27,-29,-29,-201,-133,-149,-133,-143,-121,-100,-96,-41,0,-446,-467,-449,-440,-433,-409,-410,-421,-379,-89,-134,-113,-236,-236,-303,-303,-417,-417,-357,-236,-236,-236,-233,-203,-203,-195,-245,-245,-245,-225,-557,-452,-581,-528,-715,-470,-687,-605,-691,-601,-566,-371,-816,-543,-838,-822,-786,-760,-786,0,-786,-779,-777,-763,-756,-741,-714,-707,-677,-675,-793,-592,-675,-512,-644,-497,-1323,-825,-1360,-1303,-2143,-1954,-29973,-29972,-29967,-2552,-29970,-29971,-29998,-29999]} 1. e4 {[%emt 0:12:24]} e6 {[%emt 0:00:06]} 2. d4 {[%emt 0:00:07]} d5 {[%emt 0:00:05]} 3. Nc3 {[%emt 0:00:06]} Bb4 {[%emt 0:00:06]} 4. exd5 {[%emt 0:00:05]} exd5 {[%emt 0:00:10]} 5. Bd3 {[%emt 0:00:03]} Nf6 {[%emt 0:04:44]} 6. Nge2 {[%emt 0:00:23]} O-O {[%emt 0:08:24]} 7. O-O {[%emt 0:00:47]} c6 {[%emt 0:04:51] 7...Re8 is the modern continuation.} 8. Ng3 {[%emt 0:00:49] C01: French: Exchange Variation.} Re8 {[%emt 0:06:49]} 9. h3 {[%emt 0:00:28] [#]} Bf8 $146 {[%emt 0:01:18]} ({Predecessor:} 9... Nbd7 10. Qf3 Nf8 11. Nce2 Ng6 12. c3 Be7 13. Nf5 Bxf5 14. Qxf5 Nh4 15. Qf4 Ng6 16. Qf3 Nh4 17. Qf4 Ng6 18. Qf3 Nh4 19. Qf4 {½-½ (19) Krzyzanowski,M (2535)-Sasikiran,K (2635) Prague 2022}) 10. Qf3 {[%emt 0:00:16] The position is equal.} Be6 {[%emt 0:14:51]} 11. Nce2 {[%emt 0:03:14]} Nbd7 {[%emt 0:04:14]} 12. c3 {[%emt 0:00:22]} b5 {[%emt 0:05:09]} 13. Bg5 {[%emt 0:01:45]} Qb6 {[%emt 0:02:27]} 14. Rac1 {[%emt 0:07:47]} a5 {[%emt 0:05:16]} 15. Nh5 {[%emt 0:05:03]} ({Better is} 15. Rce1 $14) 15... Ne4 $11 {[%emt 0:02:13]} 16. Be3 {[%emt 0:02:03]} f5 {[%emt 0:03:54]} 17. Nhf4 {[%emt 0:04:39]} Bf7 {[%emt 0:00:15]} 18. h4 {[%emt 0:02:19]} Ndf6 {[%emt 0:01:56]} 19. Ng3 {[%emt 0:01:50]} g6 {[%emt 0:02:04]} 20. Bb1 {[%emt 0:02:52]} (20. Nh3 $15) 20... Qd8 {[%emt 0:11:45]} 21. Nh3 {[%emt 0:04:01]} Ng4 {[%emt 0:07:54]} 22. Bg5 {[%emt 0:00:21]} Qc7 {[%emt 0:03:21]} 23. Bf4 {[%emt 0:00:57]} Bd6 {[%emt 0:00:56]} 24. Ne2 {[%emt 0:04:11]} Qe7 {[%emt 0:02:06]} 25. h5 $2 {[%emt 0:02:09]} (25. Bxd6 $11 Nxd6 26. Qf4) 25... Bxf4 {[%emt 0:03:37]} (25... gxh5 26. Bxd6 Qxd6 27. Qf4 $11) 26. Qxf4 {[%emt 0:01:13] [#]} g5 {[%emt 0:02:24]} (26... gxh5 27. f3 $16) 27. Qxf5 {[%emt 0:00:27]} Be6 {[%emt 0:00:01][%cal Bf7e6,Be6f5,Bf5h3][%mdl 32]} 28. Qf3 {[%emt 0:00:01]} Rf8 {[%emt 0:00:59][%mdl 1024] Black has strong compensation. Black is much more active.} 29. Qd3 {[%emt 0:01:10] aiming for f3.} Bf5 $40 {[%emt 0:00:45][%mdl 128] Black attacks.} 30. Qd1 $2 {[%emt 0:00:01][%mdl 8192]} (30. Ng3 $11 {and White has nothing to worry.} Qc7 31. f4 (31. Qe2 Nxg3 32. fxg3 Rae8 $17) 31... gxf4 32. Rxf4) 30... Qd6 $19 {[%emt 0:00:45][%csl Gg4][%cal Rd6h2]} 31. g3 {[%emt 0:02:05] [#]} Ne3 $1 {[%emt 0:00:10][%mdl 512]} 32. fxe3 {[%emt 0:00:17][%cal Oh3g5] Hoping for Nxg5!} Bxh3 {[%emt 0:00:02]} 33. Rxf8+ {[%emt 0:00:37]} Rxf8 {[%emt 0:00:02]} 34. Bxe4 {[%emt 0:00:53]} Rf1+ $2 {[%emt 0:00:43]} (34... dxe4 $19 {has better winning chances.} 35. Qb3+ Kg7) 35. Qxf1 $17 {[%emt 0:00:05]} Bxf1 {[%emt 0:00:06]} 36. Bxh7+ {[%emt 0:00:44]} (36. Rxf1 $17 dxe4 37. Rf5) 36... Kxh7 $19 {[%emt 0:00:01]} 37. Rxf1 $17 {[%emt 0:00:07][%mdl 4096] Endgame KQ-KRN} Qe6 {[%emt 0:00:26]} 38. Kf2 {[%emt 0:03:01][%cal Og3g4]} Qf5+ {[%emt 0:00:13]} 39. Kg2 {[%emt 0:01:46]} Qc2 {[%emt 0:00:26]} 40. Rf2 {[%emt 0:00:01]} Qe4+ {[%emt 0:01:43]} ({Don't blunder} 40... Qxb2 $2 41. g4) 41. Kf1 {[%emt 0:02:21]} Qh1+ {[%emt 0:00:15]} ({Not} 41... Qxe3 42. Rf6 $15) 42. Ng1 {[%emt 0:00:05]} Qxh5 {[%emt 0:00:08]} 43. a3 {[%emt 0:01:25]} (43. Nf3 $142 Qh1+ 44. Ke2) 43... Qd1+ $19 {[%emt 0:00:46]} 44. Kg2 {[%emt 0:00:01]} Qd3 {[%emt 0:00:30]} 45. Re2 $2 {[%emt 0:00:28]} (45. g4 {is tougher.}) 45... Qe4+ {[%emt 0:01:13]} 46. Kf2 {[%emt 0:01:32]} g4 {[%emt 0:00:24] Prevents Nf3.} 47. Kf1 {[%emt 0:00:06]} Kg7 {[%emt 0:00:44]} 48. Kf2 {[%emt 0:00:09]} (48. Rd2 $142 Qxe3 49. Rf2) 48... Kf6 {[%emt 0:00:35]} 49. Kf1 {[%emt 0:00:13]} Qd3 {[%emt 0:00:56] And now ...Kf5 would win.} 50. Kg2 {[%emt 0:00:30]} Kg5 {[%emt 0:00:18]} 51. Re1 $2 {[%emt 0:00:41]} (51. Rf2) 51... Qe4+ {[%emt 0:00:29]} 52. Kf1 {[%emt 0:00:54]} Kf5 {[%emt 0:00:48]} 53. Kf2 {[%emt 0:00:05]} Qc2+ {[%emt 0:00:17]} 54. Re2 {[%emt 0:00:01]} Qe4 {[%emt 0:01:28]} 55. Re1 {[%emt 0:00:11]} Qh1 {[%emt 0:00:27] Threatens to win with ...Qh2+.} 56. Kf1 {[%emt 0:01:52]} Ke4 {[%emt 0:00:55]} 57. Re2 {[%emt 0:00:03]} Kd3 {[%emt 0:00:39][%cal Oh1g1] White must now prevent ...Qxg1+!} 58. Rf2 {[%emt 0:00:38]} Kxe3 {[%emt 0:00:30]} 59. Re2+ {[%emt 0:00:06]} Kd3 {[%emt 0:00:04][%cal Oh1g1] ...Qxg1+! is the strong threat.} 60. Rg2 {[%emt 0:00:21]} Kc4 {[%emt 0:01:00] Strongly threatening ...b4.} 61. Re2 {[%emt 0:00:19]} b4 {[%emt 0:00:37]} 62. axb4 {[%emt 0:38:00]} axb4 {[%emt 0:00:04]} 63. Re3 {[%emt 0:00:00]} (63. cxb4 $142 Kxd4 64. Re6) 63... bxc3 {[%emt 0:00:43]} 64. bxc3 {[%emt 0:00:00]} Kb3 {[%emt 0:00:14]} 65. Re6 {[%emt 0:00:00]} Kxc3 {[%emt 0:00:10]} 66. Rxc6+ {[%emt 0:00:00]} Kxd4 {[%emt 0:00:05]} 67. Ra6 {[%emt 0:00:00]} Ke4 {[%emt 0:00:35]} (67... Ke3 $142 68. Re6+ Kd2 69. Re2+ Kd3 70. Rf2 d4 71. Ra2 Kc3 72. Ra3+ Kb2 73. Rd3 Qe4 74. Rd2+ Kc3 75. Rf2 d3 76. Re2 Qd5 77. Re3 Kc2 78. Kf2 Qc5 79. Ne2 Qa7 80. Ng1 d2 81. Ne2 d1=Q 82. Ng1 Qd2+ 83. Ne2 Qdxe3+ 84. Kg2 Qxe2+ 85. Kh1 Qa1#) 68. Re6+ {[%emt 0:00:00]} Kd3 {[%emt 0:00:23]} 69. Re3+ {[%emt 0:00:00]} Kxe3 {[%emt 0:00:27] Weighted Error Value: White=0.63/Black=0.41} 0-1

[Event "1st Bella Italia International 2022"]
[Site "Lignano"]
[Date "2022.08.20"]
[Round "5.11"]
[White "Grigorian, Roudolph"]
[Black "Gelle, Istvan"]
[Result "1/2-1/2"]
[ECO "B12"]
[WhiteElo "2101"]
[BlackElo "2218"]
[Annotator "TA"]
[PlyCount "117"]
[EventDate "2022.08.18"]
[EventCountry "ITA"]
[SourceTitle "playchess.com"]
[Source "ChessBase"]
[SourceQuality "1"]
[TimeControl "5400+30"]

{[%evp 9,117,0,0,12,18,-12,-13,-21,25,45,38,36,36,16,24,-68,-39,-70,0,0,0,-10,0,0,0,0,0,0,0,-76,-75,-75,-60,-103,-20,-30,-24,-50,0,0,-6,-96,-97,-225,-27,-22,-10,-68,-46,-91,0,-108,-120,-276,0,-5,-5,-5,-4,-5,0,0,0,0,0,-134,0,-198,-131,-244,-255,-231,-216,-216,-215,-221,-221,-204,-209,-222,-161,-225,-229,-215,-178,-240,-240,-275,-78,-145,-84,-93,-8,-15,-8,-8,-8,-8,-8,-8,-8,-8,-8,-8,-8,-8,-8,-8,-8,-8]} 1. e4 {[%emt 0:00:07]} c6 {[%emt 0:00:08]} 2. d4 {[%emt 0:00:08]} d5 {[%emt 0:00:05]} 3. e5 {[%emt 0:00:03]} Bf5 {[%emt 0:00:15]} 4. h4 {[%emt 0:01:07]} h5 {[%emt 0:00:15]} 5. Bd3 {[%emt 0:00:06]} Bxd3 {[%emt 0:00:32]} 6. Qxd3 {[%emt 0:00:02][%cal Oe5e6] White wants to play e6! B12: Caro-Kann: Advance Variation.} Qa5+ {[%emt 0:01:07]} 7. b4 {[%emt 0:03:28]} Qxb4+ {[%emt 0:05:24]} 8. Nd2 {[%emt 0:04:03][%cal Bb1d2,Bd2c4,Bc4b2,Bb2d3][%mdl 32]} Qb5 {[%emt 0:00:39]} (8... e6 $142) 9. c4 $11 {[%emt 0:08:40]} dxc4 {[%emt 0:01:05]} 10. Nxc4 {[%emt 0:00:24]} e6 {[%emt 0:01:06]} 11. Ne2 {[%emt 0:05:03][%mdl 1024] [#] White has compensation.} Qa6 $146 {[%emt 0:04:02]} ({Predecessor:} 11... Nd7 12. Rb1 Qa6 13. Qc2 Nb6 14. Nd2 Ne7 15. Ne4 Nf5 16. O-O Nd5 17. Bg5 Ba3 {0-1 (97) Martinez Alcantara,J (2598)-Murzin,V (2532) Chess.com INT 2022}) 12. Nc3 {[%emt 0:07:24]} (12. Ng3 $11) 12... b5 $1 $15 {[%emt 0:03:10]} 13. Nb2 {[%emt 0:01:55]} b4 {[%emt 0:11:07]} (13... Ne7 $15) 14. Ne4 $11 {[%emt 0:00:03]} Qxd3 {[%emt 0:03:02]} 15. Nxd3 {[%emt 0:00:02]} Nh6 {[%emt 0:03:17]} 16. Bxh6 {[%emt 0:01:51]} Rxh6 {[%emt 0:05:57]} 17. Ke2 {[%emt 0:05:32]} a5 {[%emt 0:02:40]} 18. a3 {[%emt 0:00:49]} bxa3 {[%emt 0:05:48]} 19. Nd6+ {[%emt 0:41:17]} (19. Ndc5 $11 {keeps the balance.}) 19... Bxd6 $17 {[%emt 0:00:39]} 20. exd6 {[%emt 0:00:01]} Rf6 $1 {[%emt 0:50:12]} 21. Rhb1 {[%emt 0:08:15]} Nd7 {[%emt 0:00:00]} ({Better is} 21... Rf5 $1 $17 {Threatens to win with ...Rd5.} 22. Rb7 Nd7) 22. Rxa3 $11 {[%emt 0:02:35]} Rf5 {[%emt 0:00:00]} 23. Rc3 {[%emt 0:00:02]} Rd5 {[%emt 0:00:00][%csl LRd4,LRd6]} (23... Rb5 $5 {[%cal Rb5b1]} 24. Rbc1 a4 $15) 24. Rxc6 {[%emt 0:03:06]} Rxd4 {[%emt 0:00:00]} 25. Rb5 {[%emt 0:00:03]} (25. f4 $1 $11) 25... f5 $17 {[%emt 0:00:00]} ({Don't play} 25... Rxh4 26. Rxa5 Rd8 27. f4 $14) 26. Ke3 {[%emt 0:00:01] [#]} (26. f4 $17) 26... Rxh4 $2 {[%emt 0:00:00]} (26... Re4+ $1 $19 27. Kf3 a4) 27. f4 $1 $11 {[%emt 0:01:09]} Rg4 {[%emt 0:00:00]} 28. Rb7 {[%emt 0:02:31]} ({White should play} 28. Ne5 $11 Nxe5 29. fxe5) 28... Rg3+ $1 $15 {[%emt 0:00:00]} 29. Kd4 {[%emt 0:01:33]} Rd8 {[%emt 0:00:00]} (29... Rxg2 $17 {And now ...h4 would win.} 30. Ne5 Nxe5 31. Kxe5 a4 32. d7+ Kd8) 30. Rcc7 {[%emt 0:03:30]} (30. Ne5 $1 $11 Nxe5 31. Kxe5) 30... Rxg2 $17 {[%emt 0:00:00]} 31. Ra7 $2 {[%emt 0:00:37]} (31. Nc5 $17 Rd2+ 32. Ke3 Rxd6 33. Ra7) 31... Ra2 $2 {[%emt 0:01:24]} (31... h4 $19 32. Ne5 Nxe5 33. fxe5 Kf8 34. Rxa5 h3) 32. Ne5 {[%emt 0:00:15]} Rd2+ {[%emt 0:00:21]} 33. Ke3 $1 $132 {[%emt 0:00:03][%mdl 2048] White puts up resistance. The board is on fire.} Rxd6 {[%emt 0:00:26]} 34. Nc6 {[%emt 0:00:17]} Rd5 {[%emt 0:02:07]} 35. Nxd8 {[%emt 0:01:03]} Kxd8 $11 {[%emt 0:00:04][%mdl 4096] Endgame KRR-KRN} 36. Rc2 {[%emt 0:00:30]} Ke7 {[%emt 0:01:19]} 37. Ra8 {[%emt 0:00:06] [#]} (37. Rc8 $11 {remains equal.}) 37... Rb5 {[%emt 0:00:36]} (37... Nb6 $1 $17 {[%cal Rb6a8]} 38. Ra7+ Rd7 39. Rxa5 Nd5+ 40. Kf3 Rb7) 38. Rh8 {[%emt 0:01:03]} (38. Ra7 $1 $11) 38... Rb3+ {[%emt 0:00:41]} (38... Nb6 $19 {Strongly threatening ...Nd5+.} 39. Rc7+ Kf6 40. Rf8+ Kg6) 39. Kd4 {[%emt 0:00:20]} (39. Kf2 $17 {is a better defense.}) 39... Rb4+ $19 {[%emt 0:00:52]} 40. Ke3 {[%emt 0:00:02]} Nf6 {[%emt 0:00:23]} 41. Rc7+ {[%emt 0:00:44]} Kd6 {[%emt 0:00:05]} 42. Rxg7 {[%emt 0:00:10]} Nd5+ {[%emt 0:00:04]} 43. Kd2 {[%emt 0:00:34]} Nxf4 {[%emt 0:00:23]} 44. Ra7 {[%emt 0:00:03]} a4 {[%emt 0:00:49]} 45. Kc3 {[%emt 0:00:09]} (45. Rha8 {was necessary.}) 45... Nd5+ {[%emt 0:00:20]} 46. Kd2 {[%emt 0:00:15]} h4 {[%emt 0:00:22]} 47. Rh6 {[%emt 0:00:24]} (47. Ra6+ {was called for.} Ke7 48. Rh6) 47... Rd4+ {[%emt 0:00:55]} 48. Kc2 {[%emt 0:00:15]} Re4 $2 {[%emt 0:01:48]} (48... f4 $19 {has better winning chances. aiming for ...f3.} 49. Rxh4 Ke5) 49. Ra6+ $17 {[%emt 0:00:44]} Kc5 {[%emt 0:00:17]} 50. Raxe6 {[%emt 0:01:05]} Nb4+ {[%emt 0:00:49]} (50... Rg4 $17 {...a3 is the strong threat.} 51. Rh5 Rf4) 51. Kb2 {[%emt 0:00:53] The position is equal.} Rxe6 {[%emt 0:00:43]} 52. Rxe6 $11 {[%emt 0:00:02] KR-KN} f4 {[%emt 0:00:33][%cal Bf5f4,Bf4f3][%mdl 32]} 53. Rh6 {[%emt 0:00:44]} f3 {[%emt 0:00:25]} 54. Rxh4 {[%emt 0:00:14]} f2 {[%emt 0:00:25]} 55. Rh5+ $1 {[%emt 0:00:01]} Kd4 {[%emt 0:01:19]} 56. Rf5 {[%emt 0:00:14]} Ke3 {[%emt 0:00:30]} 57. Ka3 {[%emt 0:00:59][%csl LRa4,LRb4]} Nd5 {[%emt 0:00:00] ( -> ...Nf4)} 58. Rxf2 {[%emt 0:00:13]} Kxf2 {[%emt 0:00:00]} 59. Kxa4 {[%emt 0:00:02] And White is the lucky defender.  Weighted Error Value: White=0.39/Black=0.34} 1/2-1/2

[Event "1st Bella Italia International 2022"]
[Site "Lignano"]
[Date "2022.08.20"]
[Round "5.12"]
[White "Montorsi, Matteo"]
[Black "Massironi, Marco"]
[Result "1/2-1/2"]
[ECO "B23"]
[WhiteElo "2100"]
[BlackElo "2200"]
[Annotator "TA"]
[PlyCount "120"]
[EventDate "2022.08.18"]
[EventCountry "ITA"]
[SourceTitle "playchess.com"]
[Source "ChessBase"]
[SourceQuality "1"]
[TimeControl "5400+30"]

{[%evp 10,120,19,10,80,-10,-8,-3,-3,-12,0,-12,102,100,93,103,111,102,98,46,57,61,104,102,98,110,119,106,166,163,157,77,75,66,77,72,93,95,103,95,99,112,100,114,97,119,113,113,121,120,166,152,222,214,218,218,218,198,189,91,91,67,82,8,8,8,8,8,8,0,8,8,8,8,8,8,8,8,8,8,8,8,8,0,0,0,0,0,0,0,0,0,0,0,0,0,0,0,0,0,0,0,0,0,0,0,0,0,0,0,29985,0,29987]} 1. e4 c5 {[%emt 0:10:22]} 2. Nc3 {[%emt 0:00:13]} a6 {[%emt 0:00:21]} 3. g3 {[%emt 0:00:08]} b5 {[%emt 0:00:05]} 4. Bg2 {[%emt 0:00:07]} Bb7 {[%emt 0:00:05]} 5. d3 {[%emt 0:01:09]} e6 {[%emt 0:00:06]} 6. Nh3 {[%emt 0:00:09]} d5 {[%emt 0:02:57] B23: Closed Sicilian: Lines without g3.} (6... d6 $11) 7. O-O {[%emt 0:02:31]} (7. exd5 $16 {0-0 is the strong threat.} b4 8. Bg5) 7... d4 $11 {[%emt 0:01:46]} 8. Ne2 {[%emt 0:00:13] [#]} Nf6 $146 {[%emt 0:01:36]} ({Predecessor:} 8... Bd6 9. f4 e5 10. Ng5 f6 11. fxe5 Bxe5 12. Nf3 Nd7 13. Nf4 Bxf4 14. Bxf4 Ne7 {0-1 (48) Manukyan,A (2148)-Nemeth Junior,H (2001) Chess.com INT 2020}) 9. c3 {[%emt 0:02:31]} Nc6 {[%emt 0:02:09]} 10. f4 {[%emt 0:12:51]} c4 {[%emt 0:25:10]} (10... Be7 $11 {keeps the balance.}) 11. e5 $16 {[%emt 0:11:40]} cxd3 {[%emt 0:08:09]} 12. Nxd4 {[%emt 0:16:57]} Nd5 {[%emt 0:24:04]} 13. Nxc6 $1 {[%emt 0:05:26]} (13. Qxd3 Nxd4 14. Qxd4 Qc7 $14) 13... Bxc6 {[%emt 0:00:03]} 14. Qxd3 {[%emt 0:00:49]} ({White should play} 14. Be3 $1 $16) 14... Qb6+ $14 {[%emt 0:01:10]} 15. Kh1 {[%emt 0:00:36]} (15. Be3 $2 Nxe3 16. Bf3 (16. Bxc6+ $2 Qxc6 17. Qe2 Bc5 $19) 16... Bxf3 17. Rxf3 Rd8 $1 $19) 15... O-O-O {[%emt 0:03:04][%cal Od5f4]} 16. Qe2 {[%emt 0:03:36]} Bc5 {[%emt 0:00:49]} 17. Ng5 {[%emt 0:02:12]} Rd7 {[%emt 0:04:21]} 18. Ne4 {[%emt 0:04:15][%cal Oa2a4]} h5 {[%emt 0:00:37]} (18... Rhd8 $16) 19. h4 $18 {[%emt 0:09:27]} Rhd8 {[%emt 0:01:59]} 20. b3 {[%emt 0:05:07]} (20. Qxh5 Be3 $16) (20. f5 $142) 20... b4 $16 {[%emt 0:06:27]} 21. Nxc5 {[%emt 0:02:27]} Qxc5 {[%emt 0:00:02]} 22. cxb4 {[%emt 0:00:16]} Qb5 {[%emt 0:02:48]} 23. Qxb5 {[%emt 0:02:47]} Bxb5 {[%emt 0:00:03]} 24. Rf2 {[%emt 0:02:33]} Nxb4 {[%emt 0:01:09]} 25. Ba3 {[%emt 0:01:03]} Rd1+ {[%emt 0:00:05]} 26. Rxd1 {[%emt 0:00:05]} Rxd1+ {[%emt 0:00:04]} 27. Kh2 {[%emt 0:00:23]} Nd3 {[%emt 0:00:19]} 28. Rc2+ {[%emt 0:01:05]} Kd7 {[%emt 0:00:07]} 29. Bf3 {[%emt 0:02:25]} Rf1 {[%emt 0:00:23] [#]} (29... Ra1 $16 30. Be4 (30. Bxh5 Bc6 $17) 30... Re1) 30. Be2 $1 $18 {[%emt 0:01:46] This bishop pair is nice.} (30. Bxh5 Bc6 31. Rxc6 (31. Kh3 Rh1+ 32. Kg4 g6 $15) 31... Kxc6 $14) 30... Rf2+ {[%emt 0:03:53]} (30... Ra1 $16 {was worth a try.}) 31. Kg1 {[%emt 0:00:59]} Rg2+ {[%emt 0:00:02]} 32. Kxg2 {[%emt 0:01:37]} Ne1+ {[%emt 0:00:02]} 33. Kf2 {[%emt 0:00:21]} Nxc2 {[%emt 0:00:02]} 34. Bxb5+ {[%emt 0:01:03]} ({Inferior is} 34. Bxh5 g6 35. Bf3 Nxa3 $15) (34. Bc5 $18 {is more deadly.}) 34... axb5 {[%emt 0:00:02][%mdl 4096] Endgame KB-KN} 35. Bf8 {[%emt 0:00:59]} g6 {[%emt 0:00:01] [#]} 36. Ke2 {[%emt 0:01:13]} ({White should try} 36. a4 $1 $16) 36... Nd4+ $11 {[%emt 0:00:29]} 37. Ke3 {[%emt 0:01:44]} Nf5+ {[%emt 0:00:03]} 38. Kf2 {[%emt 0:00:08]} Kc6 {[%emt 0:00:11]} 39. a4 {[%emt 0:00:28]} bxa4 {[%emt 0:00:46]} 40. bxa4 {[%emt 0:00:01]} Kb6 {[%emt 0:00:49]} 41. Bb4 {[%emt 0:00:47]} Kc6 $1 {[%emt 0:01:58]} 42. Be1 {[%emt 0:01:17]} Kd5 {[%emt 0:01:42]} 43. Ke2 {[%emt 0:00:36]} Kc4 {[%emt 0:00:05]} 44. Kf3 {[%emt 0:01:54]} Nd4+ {[%emt 0:00:32]} 45. Ke4 {[%emt 0:01:01] Hoping for a5.} Nf5 {[%emt 0:00:25]} 46. a5 {[%emt 0:00:32] Strongly threatening a6.} Kb5 {[%emt 0:00:09]} 47. Kf3 {[%emt 0:00:24]} Nd4+ {[%emt 0:00:23]} 48. Kf2 {[%emt 0:01:26]} Nc6 {[%emt 0:01:26]} 49. Ke3 {[%emt 0:00:42][%cal Of4f5] aiming for f5!} Nxa5 {[%emt 0:00:14]} 50. Bxa5 {[%emt 0:00:22]} Kxa5 {[%emt 0:00:01] KP-KP} 51. f5 {[%emt 0:00:32]} exf5 {[%emt 0:00:32]} (51... gxf5 $2 52. Kf4 Kb5 53. Kg5 $18) 52. Kd4 {[%emt 0:02:24] And now Kc5 would win.} Kb4 {[%emt 0:00:11]} (52... Kb6 $5 53. e6 fxe6 $11) 53. e6 {[%emt 0:00:36]} fxe6 {[%emt 0:00:01]} 54. Ke5 {[%emt 0:00:10]} Kc4 {[%emt 0:00:14]} 55. Kxe6 {[%emt 0:00:23] K3P-KPP} Kd4 {[%emt 0:00:21][%cal Of5f4]} 56. Kf6 {[%emt 0:00:09]} Ke4 {[%emt 0:00:13]} 57. Kxg6 {[%emt 0:00:32] White wants to mate with Kg5.} f4 {[%emt 0:00:04]} 58. gxf4 {[%emt 0:00:12]} Kxf4 {[%emt 0:00:02] ( -> ...Kg4)} 59. Kxh5 {[%emt 0:00:10] Threatening mate with Kg6.} Kf5 {[%emt 0:00:03]} 60. Kh6 {[%emt 0:01:29]} Ke5 $4 {[%emt 0:00:30][%mdl 40960] Weighted Error Value: White=0.11 (very precise) /Black=0.13 (very precise) . An unexpected result.} (60... Kf6 $11) 1/2-1/2